lending/lending_fUSD_20240605
["ID","MTS","AMOUNT","RATE_DAILY","PERIOD"]
[328607399,1717602663355,-180.851124,0.00029495,2]
[328607400,1717602663365,-2634.427178,0.00029495,2]
[328607401,1717602663376,-2345.735879,0.00029495,2]
[328607402,1717602663386,-152.656571,0.00029495,2]
[328607403,1717602663396,-160.988646,0.00029495,2]
[328607404,1717602663407,-153.871108,0.00029495,2]
[328607405,1717602663418,-735.066157,0.00029495,2]
[328607406,1717602663427,-168.811657,0.00029495,2]
[328607407,1717602663437,-150.0,0.00029495,7]
[328607408,1717602663446,-596.7,0.00029496,4]
[328607409,1717602663455,-500.0,0.00029496,4]
[328607410,1717602663464,-3495.38,0.00029496,4]
[328607411,1717602663473,-608.4516793,0.00029496,4]
[328607412,1717602663483,-623.74,0.00029496,4]
[328607413,1717602663492,-329.26310027,0.00029496,4]
[328607414,1717602663502,-1141.32,0.00029496,4]
[328607415,1717602663511,-500.0,0.00029496,4]
[328607416,1717602663522,-3589.35,0.00029496,4]
[328607417,1717602663532,-1397.27,0.00029496,4]
[328607418,1717602663637,-500.0,0.00029496,4]
[328607419,1717602663658,-1000.0,0.00029496,5]
[328607420,1717602663669,-792.01,0.00029496,4]
[328607421,1717602663678,-1204.39,0.00029496,4]
[328607422,1717602663689,-500.0,0.00029496,4]
[328607423,1717602663699,-1771.71,0.00029496,4]
[328607424,1717602663710,-500.0,0.00029496,4]
[328607425,1717602663719,-655.21,0.00029496,4]
[328607426,1717602663731,-514.48,0.00029496,4]
[328607427,1717602663740,-712.31,0.00029496,4]
[328607428,1717602663749,-500.0,0.00029496,4]
[328607429,1717602663759,-2284.97,0.00029496,4]
[328607430,1717602663768,-500.0,0.00029496,4]
[328607431,1717602663780,-2317.44,0.00029496,4]
[328607432,1717602663792,-3193.29,0.00029496,4]
[328607433,1717602663801,-1757.88,0.00029496,4]
[328607434,1717602663810,-500.0,0.00029496,4]
[328607435,1717602663820,-500.0,0.00029496,4]
[328607436,1717602663829,-500.0,0.00029496,4]
[328607437,1717602663838,-500.0,0.00029496,4]
[328607438,1717602663848,-1249.98,0.00029496,4]
[328607439,1717602663857,-500.0,0.00029496,4]
[328607440,1717602663868,-696.15,0.00029496,4]
[328607441,1717602663878,-7538.74,0.00029496,4]
[328607442,1717602663887,-500.0,0.00029496,4]
[328607443,1717602663897,-1378.29,0.00029496,4]
[328607444,1717602663906,-500.0,0.00029496,4]
[328607445,1717602663916,-516.29,0.00029496,4]
[328607446,1717602663925,-1211.95,0.00029496,4]
[328607447,1717602663934,-500.0,0.00029497,4]
[328607448,1717602663943,-470.04026121,0.00029497,4]
[328607449,1717602663952,-1787.41,0.00029497,4]
[328607450,1717602663961,-596.7,0.00029497,4]
[328607451,1717602663969,-500.0,0.00029497,4]
[328607452,1717602663979,-574.77396802,0.00029497,4]
[328607453,1717602663990,-3495.38,0.00029497,4]
[328607454,1717602663999,-500.0,0.00029497,4]
[328607455,1717602664008,-623.74,0.00029497,4]
[328607456,1717602664018,-578.71,0.00029497,4]
[328607457,1717602664028,-1141.32,0.00029497,4]
[328607458,1717602664037,-505.41,0.00029497,4]
[328607459,1717602664046,-500.0,0.00029497,4]
[328607460,1717602664056,-500.0,0.00029497,4]
[328607461,1717602664065,-500.0,0.00029497,4]
[328607462,1717602664075,-3589.35,0.00029497,4]
[328607463,1717602664084,-500.0,0.00029497,4]
[328607464,1717602664094,-500.0,0.00029497,4]
[328607465,1717602664104,-2828.54,0.00029497,4]
[328607466,1717602664114,-1397.27,0.00029497,4]
[328607467,1717602664124,-1000.0,0.00029497,5]
[328607468,1717602664133,-959.58,0.00029497,4]
[328607469,1717602664143,-1204.39,0.00029497,4]
[328607470,1717602664153,-1771.71,0.00029497,4]
[328607471,1717602664163,-621.21457381,0.00029497,4]
[328607472,1717602664172,-801.84,0.00029497,4]
[328607473,1717602664182,-514.48,0.00029497,4]
[328607474,1717602664191,-590.94,0.00029497,4]
[328607475,1717602664200,-500.0,0.00029497,4]
[328607476,1717602664210,-2284.97,0.00029497,4]
[328607477,1717602664219,-3193.29,0.00029497,4]
[328607478,1717602664232,-625.55,0.00029497,4]
[328607479,1717602664241,-500.0,0.00029497,4]
[328607480,1717602664251,-150.0,0.00029497,10]
[328607481,1717602664261,-502.83,0.00029497,4]
[328607482,1717602664270,-1249.98,0.00029497,4]
[328607483,1717602664280,-500.0,0.00029497,4]
[328607484,1717602664289,-696.15,0.00029497,4]
[328607485,1717602664298,-457.71206429,0.00029497,4]
[328607486,1717602664307,-352.38612273,0.00029497,4]
[328607487,1717602664316,-1378.29,0.00029497,4]
[328607488,1717602664326,-707.96,0.00029497,4]
[328607489,1717602664335,-577.02,0.00029497,4]
[328607490,1717602664344,-516.29,0.00029497,4]
[328607491,1717602664354,-2785.56,0.00029497,4]
[328607492,1717602664363,-294.11155773,0.00029498,15]
[328607493,1717602664372,-1161.38032203,0.00029498,15]
[328607494,1717602664382,-644.204232,0.00029498,2]
[328607495,1717602664391,-500.0,0.00029498,4]
[328607496,1717602664400,-500.0,0.00029498,4]
[328607497,1717602664410,-434.92850381,0.00029498,4]
[328607498,1717602664419,-592.22,0.00029498,4]
[328607499,1717602664429,-592.22,0.00029498,4]
[328607500,1717602664438,-376.8708357,0.00029498,4]
[328607501,1717602664447,-500.0,0.00029498,4]
[328607502,1717602664456,-500.0,0.00029498,4]
[328607503,1717602664465,-500.0,0.00029498,4]
[328607504,1717602664474,-500.0,0.00029498,4]
[328607505,1717602664485,-353.66,0.00029498,4]
[328607506,1717602664494,-1565.72,0.00029498,4]
[328607507,1717602664504,-1565.72,0.00029498,4]
[328607508,1717602664516,-500.0,0.00029498,2]
[328607509,1717602664526,-500.0,0.00029498,2]
[328607510,1717602664536,-1787.41,0.00029498,4]
[328607511,1717602664545,-1787.41,0.00029498,4]
[328607512,1717602664555,-1787.41,0.00029498,4]
[328607513,1717602664565,-596.7,0.00029498,4]
[328607514,1717602664575,-596.7,0.00029498,4]
[328607515,1717602664590,-500.0,0.00029498,4]
[328607516,1717602664600,-500.0,0.00029498,4]
[328607517,1717602664609,-3495.38,0.00029498,4]
[328607518,1717602664619,-3495.38,0.00029498,4]
[328607519,1717602664628,-582.12760149,0.00029498,4]
[328607520,1717602664637,-500.0,0.00029498,4]
[328607521,1717602664646,-500.0,0.00029498,4]
[328607522,1717602664655,-460.92103835,0.00029498,4]
[328607523,1717602664665,-623.74,0.00029498,4]
[328607524,1717602664675,-623.74,0.00029498,4]
[328607525,1717602664685,-500.0,0.00029498,4]
[328607526,1717602664694,-311.79132925,0.00029498,4]
[328607527,1717602664704,-578.71,0.00029498,4]
[328607528,1717602664713,-578.71,0.00029498,4]
[328607529,1717602664724,-578.71,0.00029498,4]
[328607530,1717602664735,-1141.32,0.00029498,4]
[328607531,1717602664745,-505.41,0.00029498,4]
[328607532,1717602664756,-1141.32,0.00029498,4]
[328607533,1717602664765,-505.41,0.00029498,4]
[328607534,1717602664777,-505.41,0.00029498,4]
[328607535,1717602664787,-500.0,0.00029498,4]
[328607536,1717602664796,-500.0,0.00029498,4]
[328607537,1717602664805,-500.0,0.00029498,4]
[328607538,1717602664815,-500.0,0.00029498,4]
[328607539,1717602664824,-500.0,0.00029498,4]
[328607540,1717602664833,-449.84764554,0.00029498,4]
[328607541,1717602664842,-3589.35,0.00029498,4]
[328607542,1717602664852,-3589.35,0.00029498,4]
[328607543,1717602664861,-500.0,0.00029498,4]
[328607544,1717602664871,-632.07796142,0.00029498,4]
[328607545,1717602664880,-500.0,0.00029498,4]
[328607546,1717602664889,-500.0,0.00029498,4]
[328607547,1717602664899,-500.0,0.00029498,4]
[328607548,1717602664908,-2828.54,0.00029498,4]
[328607549,1717602664917,-2828.54,0.00029498,4]
[328607550,1717602664927,-1397.27,0.00029498,4]
[328607551,1717602664936,-1397.27,0.00029498,4]
[328607552,1717602664946,-500.0,0.00029498,4]
[328607553,1717602664955,-500.0,0.00029498,4]
[328607554,1717602664964,-500.0,0.00029498,4]
[328607555,1717602664973,-1000.0,0.00029498,5]
[328607556,1717602664984,-1000.0,0.00029498,5]
[328607557,1717602664994,-959.58,0.00029498,4]
[328607558,1717602665003,-792.01,0.00029498,4]
[328607559,1717602665012,-959.58,0.00029498,4]
[328607560,1717602665021,-792.01,0.00029498,4]
[328607561,1717602665030,-959.58,0.00029498,4]
[328607562,1717602665039,-792.01,0.00029498,4]
[328607563,1717602665048,-1204.39,0.00029498,4]
[328607564,1717602665057,-1204.39,0.00029498,4]
[328607565,1717602665068,-500.0,0.00029498,4]
[328607566,1717602665077,-500.0,0.00029498,4]
[328607567,1717602665086,-617.99021409,0.00029498,4]
[328607568,1717602665095,-1771.71,0.00029498,4]
[328607569,1717602665104,-655.21,0.00029498,4]
[328607570,1717602665114,-655.21,0.00029498,4]
[328607571,1717602665123,-655.21,0.00029498,4]
[328607572,1717602665132,-801.84,0.00029498,4]
[328607573,1717602665141,-801.84,0.00029498,4]
[328607574,1717602665151,-801.84,0.00029498,4]
[328607575,1717602665160,-514.48,0.00029498,4]
[328607576,1717602665169,-514.48,0.00029498,4]
[328607577,1717602665178,-590.94,0.00029498,4]
[328607578,1717602665188,-590.94,0.00029498,4]
[328607579,1717602665197,-500.0,0.00029498,4]
[328607580,1717602665206,-590.94,0.00029498,4]
[328607581,1717602665215,-500.0,0.00029498,4]
[328607582,1717602665224,-500.0,0.00029498,4]
[328607583,1717602665237,-712.31,0.00029498,4]
[328607584,1717602665246,-712.31,0.00029498,4]
[328607585,1717602665255,-712.31,0.00029498,4]
[328607586,1717602665264,-500.0,0.00029498,4]
[328607587,1717602665273,-500.0,0.00029498,4]
[328607588,1717602665284,-500.0,0.00029498,4]
[328607589,1717602665293,-2284.97,0.00029498,4]
[328607590,1717602665304,-2284.97,0.00029498,4]
[328607591,1717602665312,-500.0,0.00029498,4]
[328607592,1717602665321,-500.0,0.00029498,4]
[328607593,1717602665330,-500.0,0.00029498,4]
[328607594,1717602665339,-2317.44,0.00029498,4]
[328607595,1717602665348,-2317.44,0.00029498,4]
[328607596,1717602665357,-2317.44,0.00029498,4]
[328607597,1717602665366,-3193.29,0.00029498,4]
[328607598,1717602665375,-3193.29,0.00029498,4]
[328607599,1717602665385,-625.55,0.00029498,4]
[328607600,1717602665394,-1757.88,0.00029498,4]
[328607601,1717602665403,-625.55,0.00029498,4]
[328607602,1717602665412,-1757.88,0.00029498,4]
[328607603,1717602665421,-625.55,0.00029498,4]
[328607604,1717602665430,-1757.88,0.00029498,4]
[328607605,1717602665439,-500.0,0.00029498,4]
[328607606,1717602665448,-500.0,0.00029498,4]
[328607607,1717602665457,-500.0,0.00029498,4]
[328607608,1717602665466,-500.0,0.00029498,4]
[328607609,1717602665475,-500.0,0.00029498,4]
[328607610,1717602665489,-502.83,0.00029498,4]
[328607611,1717602665498,-502.83,0.00029498,4]
[328607612,1717602665508,-502.83,0.00029498,4]
[328607613,1717602665517,-500.0,0.00029498,4]
[328607614,1717602665526,-500.0,0.00029498,4]
[328607615,1717602665535,-500.0,0.00029498,4]
[328607616,1717602665544,-500.0,0.00029498,4]
[328607617,1717602665553,-500.0,0.00029498,4]
[328607618,1717602665562,-500.0,0.00029498,4]
[328607619,1717602665571,-1249.98,0.00029498,4]
[328607620,1717602665580,-1249.98,0.00029498,4]
[328607621,1717602665589,-500.0,0.00029498,4]
[328607622,1717602665597,-500.0,0.00029498,4]
[328607623,1717602665606,-696.15,0.00029498,4]
[328607624,1717602665616,-696.15,0.00029498,4]
[328607625,1717602665625,-7538.74,0.00029498,4]
[328607626,1717602665634,-7538.74,0.00029498,4]
[328607627,1717602665643,-7538.74,0.00029498,4]
[328607628,1717602665652,-1378.29,0.00029498,4]
[328607629,1717602665661,-1378.29,0.00029498,4]
[328607630,1717602665670,-707.96,0.00029498,4]
[328607631,1717602665679,-707.96,0.00029498,4]
[328607632,1717602665688,-707.96,0.00029498,4]
[328607633,1717602665698,-577.02,0.00029498,4]
[328607634,1717602665707,-577.02,0.00029498,4]
[328607635,1717602665716,-577.02,0.00029498,4]
[328607636,1717602665725,-500.0,0.00029498,4]
[328607637,1717602665740,-500.0,0.00029498,4]
[328607638,1717602665750,-500.0,0.00029498,4]
[328607639,1717602665759,-516.29,0.00029498,4]
[328607640,1717602665768,-516.29,0.00029498,4]
[328607641,1717602665778,-2785.56,0.00029498,4]
[328607642,1717602665789,-2785.56,0.00029498,4]
[328607643,1717602665798,-2785.56,0.00029498,4]
[328607644,1717602665807,-1211.95,0.00029498,4]
[328607645,1717602665816,-1211.95,0.00029498,4]
[328607646,1717602665825,-1211.95,0.00029498,4]
[328607647,1717602665834,-334796.61423114,0.00029499,2]
[328607649,1717602752257,-375.0,0.00031935,120]
[328607650,1717602803739,-231.35,0.00029808,30]
[328607651,1717602803780,-900.0,0.0003,31]
[328607652,1717602803810,-2000.0,0.0003,30]
[328607653,1717602815002,-900.0,0.00031,32]
[328607656,1717603060520,217.26605951,0.00019451,2]
[328607657,1717603086076,3063.72776014,0.00019451,2]
[328607658,1717603382825,150.0,0.00019725,2]
[328607660,1717603506338,217.26605951,0.00017533,2]
[328607661,1717603515969,3376.13336481,0.00019725,2]
[328607663,1717603554617,3063.72776014,0.00019451,2]
[328607664,1717603632190,-658.89,0.00024111,2]
[328607665,1717603632216,-175.94,0.00024384,2]
[328607666,1717603632241,-250.0,0.000247,7]
[328607667,1717603632263,-1250.0,0.00025,2]
[328607668,1717603632284,-300.0,0.0002531,2]
[328607669,1717603632308,-773.71092821,0.00025515,2]
[328607670,1717603635193,-712.39875079,0.00025515,2]
[328607671,1717603635214,-107.95671447,0.00025643,2]
[328607672,1717603705743,2551.00091411,0.00019232,2]
[328607673,1717603725713,2551.00091411,0.00014424,2]
[328607674,1717603743721,188.18577235,0.00014424,2]
[328607675,1717603746102,-6995.2442369,0.000253,5]
[328607676,1717603766856,155.07582461,0.00019232,2]
[328607677,1717603767138,-1546.14810082,0.000253,5]
[328607678,1717603767832,3306.06387339,0.00019232,2]
[328607682,1717603775648,289.58953642,0.00019232,2]
[328607683,1717603821332,226.57668191,0.000201,2]
[328607702,1717603831709,-174.93,0.00024384,2]
[328607703,1717603831719,-3063.72776014,0.00024999,2]
[328607704,1717603831729,-3188.0,0.00025,5]
[328607705,1717603831738,-217.26605951,0.00025299,2]
[328607706,1717603831748,-155.0,0.000253,2]
[328607707,1717603831758,-300.0,0.0002531,2]
[328607708,1717603831768,-4741.7416,0.000254,2]
[328607709,1717603831777,-192.04328553,0.00025643,2]
[328607710,1717603831786,-499.99,0.00025643,2]
[328607711,1717603831795,-150.99,0.00025846,2]
[328607712,1717603831805,-852.36,0.00025916,2]
[328607713,1717603831815,-170.64,0.00026029,2]
[328607714,1717603831824,-250.0,0.00026029,2]
[328607715,1717603831835,-200.0,0.00026164,2]
[328607716,1717603831846,-764.0,0.00026194,2]
[328607717,1717603831856,-14936.5612,0.00026201,2]
[328607718,1717603831865,-164.6,0.00026202,2]
[328607719,1717603831874,-872.23,0.00026219,2]
[328607720,1717603831884,-658.89,0.00026375,2]
[328607721,1717603831893,-164.36,0.00026454,2]
[328607722,1717603831903,-164.36,0.00026476,2]
[328607723,1717603831912,-162.088,0.00026476,2]
[328607724,1717603831922,-1424.67156861,0.00026478,2]
[328607725,1717603831931,-2361.55052621,0.00026488,2]
[328607726,1717603831944,-368.63023928,0.00026488,2]
[328607727,1717603831956,-423.32484874,0.00026488,2]
[328607728,1717603831973,-939.82724979,0.00026488,2]
[328607729,1717603831984,-648.56859254,0.00026488,2]
[328607730,1717603831995,-5845.47387287,0.00026488,2]
[328607731,1717603832009,-882.33461522,0.00026488,2]
[328607732,1717603832020,-580.73799424,0.00026488,2]
[328607733,1717603832032,-601.0980768,0.00026488,2]
[328607734,1717603832043,-1432.60164,0.00026488,2]
[328607735,1717603832054,-2470.24297497,0.00026488,2]
[328607736,1717603832072,-504.69421276,0.00026488,2]
[328607737,1717603832083,-900.25368682,0.00026488,2]
[328607752,1717603837253,226.57668191,0.00022124,2]
[328607755,1717603838387,-226.57668195,0.00025643,2]
[328607758,1717603838418,-107.1858057,0.00025643,2]
[328607761,1717603838427,-1235.15,0.00026231,2]
[328607763,1717603838436,-5940.66146976,0.00026488,2]
[328607764,1717603838445,-168.87,0.00026488,2]
[328607765,1717603838455,-250.0,0.0002649,2]
[328607766,1717603838464,-164.36,0.00026498,2]
[328607767,1717603838474,-164.36,0.0002652,2]
[328607768,1717603838483,-164.36,0.00026542,2]
[328607769,1717603838492,-200.0,0.00026554,2]
[328607770,1717603838502,-164.36,0.00026564,2]
[328607771,1717603838511,-164.36,0.00026586,2]
[328607772,1717603838520,-202.25,0.00026847,2]
[328607773,1717603838529,-1000.0,0.00026895,2]
[328607774,1717603838539,-1300.0,0.00027,2]
[328607775,1717603838548,-167.59,0.00027156,2]
[328607776,1717603838557,-852.36,0.00027212,2]
[328607777,1717603838566,-164.6,0.00027567,2]
[328607778,1717603838575,-162.088,0.00027866,2]
[328607779,1717603838584,-416.97,0.00028082,2]
[328607780,1717603838594,-872.63,0.00028082,2]
[328607781,1717603838604,-872.63,0.00028082,2]
[328607782,1717603838613,-872.63,0.00028082,2]
[328607783,1717603838622,-414.21,0.00028082,2]
[328607784,1717603838632,-857.3,0.00028082,2]
[328607785,1717603838642,-836.342439,0.0002809,2]
[328607786,1717603838651,-213.791135,0.0002809,2]
[328607787,1717603838661,-183.754793,0.0002809,2]
[328607788,1717603838670,-246.193775,0.0002809,2]
[328607789,1717603838680,-3792.701476,0.0002809,2]
[328607790,1717603838689,-1638.63962,0.0002809,2]
[328607791,1717603838698,-155.37392336,0.00028152,2]
[328607792,1717603838708,-154.14326251,0.00028171,2]
[328607793,1717603838717,-1326.99,0.00028203,2]
[328607794,1717603838728,-13657.2,0.00028203,2]
[328607795,1717603838737,-161.88706885,0.00028241,2]
[328607796,1717603838746,-973.47493809,0.00028277,2]
[328607797,1717603838756,-154.70986383,0.00028277,2]
[328607798,1717603838765,-161.88706885,0.00028324,2]
[328607799,1717603838775,-159.60127696,0.00028346,2]
[328607800,1717603838784,-41006.259,0.00028377,2]
[328607801,1717603838793,-1000.0,0.00028377,2]
[328607802,1717603838803,-836.342439,0.00028441,2]
[328607803,1717603838812,-3792.701476,0.00028441,2]
[328607804,1717603838821,-1638.63962,0.00028441,2]
[328607805,1717603838831,-973.47493807,0.00028457,2]
[328607806,1717603838840,-500.0,0.00028476,4]
[328607807,1717603838849,-500.0,0.00028476,4]
[328607808,1717603838858,-1000.0,0.00028477,2]
[328607809,1717603838867,-1000.0,0.00028477,2]
[328607810,1717603838876,-1000.0,0.00028477,2]
[328607811,1717603838885,-1000.0,0.00028477,2]
[328607812,1717603838894,-1000.0,0.00028477,2]
[328607813,1717603838904,-1000.0,0.00028477,2]
[328607814,1717603838913,-1000.0,0.00028477,2]
[328607815,1717603838923,-1000.0,0.00028477,2]
[328607816,1717603838932,-1000.0,0.00028477,2]
[328607817,1717603838941,-1000.0,0.00028477,2]
[328607818,1717603838950,-1000.0,0.00028477,2]
[328607819,1717603838960,-1000.0,0.00028477,2]
[328607820,1717603838971,-1000.0,0.00028477,2]
[328607821,1717603838980,-1000.0,0.00028477,2]
[328607822,1717603838989,-1000.0,0.00028477,2]
[328607823,1717603838999,-1000.0,0.00028477,2]
[328607824,1717603839008,-1000.0,0.00028477,2]
[328607825,1717603839017,-1000.0,0.00028477,2]
[328607826,1717603839027,-1000.0,0.00028477,2]
[328607827,1717603839036,-1000.0,0.00028477,2]
[328607828,1717603839045,-1000.0,0.00028477,2]
[328607829,1717603839054,-1000.0,0.00028477,2]
[328607830,1717603839064,-1000.0,0.00028477,2]
[328607831,1717603839073,-1000.0,0.00028477,2]
[328607832,1717603839083,-1000.0,0.00028477,2]
[328607833,1717603839092,-1000.0,0.00028477,2]
[328607834,1717603839103,-1000.0,0.00028477,2]
[328607835,1717603839113,-1000.0,0.00028477,2]
[328607836,1717603839123,-1000.0,0.00028477,2]
[328607837,1717603839132,-1000.0,0.00028477,2]
[328607838,1717603839142,-1000.0,0.00028477,2]
[328607839,1717603839151,-1000.0,0.00028477,2]
[328607840,1717603839161,-1000.0,0.00028477,2]
[328607841,1717603839172,-987.0,0.00028477,2]
[328607842,1717603839182,-178.11879247,0.00028477,4]
[328607843,1717603839192,-496.84653489,0.00028477,4]
[328607844,1717603839202,-500.0,0.00028477,2]
[328607845,1717603839212,-500.0,0.00028477,2]
[328607846,1717603839221,-848.1,0.00028477,4]
[328607847,1717603839230,-848.1,0.00028477,4]
[328607848,1717603839240,-500.0,0.00028477,4]
[328607849,1717603839251,-180.63864052,0.00028477,4]
[328607850,1717603839260,-500.0,0.00028477,4]
[328607851,1717603839270,-2847.23944578,0.00028477,2]
[328607852,1717603839279,-192.66109184,0.00028477,2]
[328607853,1717603839288,-500.0,0.00028478,2]
[328607854,1717603839297,-848.1,0.00028478,4]
[328607855,1717603839307,-500.0,0.00028478,4]
[328607856,1717603839316,-500.0,0.00028478,4]
[328607857,1717603839326,-7500.0,0.00028479,2]
[328607858,1717603839335,-630.16210552,0.00028508,2]
[328607859,1717603839350,-222.19789448,0.00028508,2]
[328607860,1717603839360,-500.0,0.0002856,4]
[328607861,1717603839370,-163.34746724,0.00028561,2]
[328607862,1717603839379,-848.1,0.00028561,4]
[328607863,1717603839388,-848.1,0.00028577,4]
[328607864,1717603839398,-534.08668798,0.00028577,2]
[328607865,1717603839407,-500.0,0.00028577,2]
[328607866,1717603839416,-195.6679503,0.00028577,2]
[328607885,1717603840172,-206.05,0.00028469,3]
[328607887,1717603840182,-275.346,0.00028577,2]
[328607892,1717603840229,-28.9860497,0.00028577,2]
[328607893,1717603840238,-500.0,0.00028577,4]
[328607894,1717603840248,-177.48,0.00028577,4]
[328607895,1717603840258,-500.0,0.00028577,4]
[328607897,1717603840267,-500.0,0.00028577,4]
[328607899,1717603840277,-500.0,0.00028577,4]
[328607901,1717603840286,-500.0,0.00028577,4]
[328607903,1717603840296,-500.0,0.00028577,4]
[328607905,1717603840306,-500.0,0.00028577,4]
[328607907,1717603840315,-500.0,0.00028577,4]
[328607909,1717603840324,-500.0,0.00028577,4]
[328607911,1717603840333,-500.0,0.00028577,4]
[328607913,1717603840343,-500.0,0.00028577,4]
[328607915,1717603840353,-177.2069003,0.00028577,4]
[328607917,1717603840364,-322.7930997,0.00028577,4]
[328607919,1717603840373,-636.71909922,0.00028577,4]
[328607921,1717603840382,-417.57555504,0.00028577,4]
[328607923,1717603840391,-500.0,0.00028577,4]
[328607925,1717603840401,-527.06748046,0.00028577,4]
[328607927,1717603840410,-500.0,0.00028577,4]
[328607929,1717603840420,-524.84495015,0.00028577,4]
[328607931,1717603840429,-500.0,0.00028577,4]
[328607932,1717603840438,-500.0,0.00028577,4]
[328607949,1717603840582,-477.44731543,0.00028577,4]
[328607950,1717603841045,-22.55268457,0.00028577,4]
[328607951,1717603841056,-500.0,0.00028577,4]
[328607952,1717603841065,-500.0,0.00028577,4]
[328607953,1717603841074,-500.0,0.00028577,4]
[328607954,1717603841083,-500.0,0.00028577,4]
[328607955,1717603841092,-670.28,0.00028577,4]
[328607956,1717603841102,-670.28,0.00028577,4]
[328607957,1717603841111,-500.0,0.00028577,4]
[328607958,1717603841121,-500.0,0.00028577,4]
[328607959,1717603841131,-520.41828882,0.00028577,4]
[328607960,1717603841140,-500.0,0.00028577,4]
[328607961,1717603841150,-500.0,0.00028577,4]
[328607962,1717603841159,-542.34622366,0.00028577,4]
[328607963,1717603841174,-500.0,0.00028577,4]
[328607964,1717603841188,-500.0,0.00028577,4]
[328607965,1717603841197,-500.0,0.00028577,4]
[328607966,1717603841207,-500.0,0.00028577,4]
[328607967,1717603841216,-500.0,0.00028577,4]
[328607969,1717603841225,-500.0,0.00028577,4]
[328607971,1717603841234,-500.0,0.00028577,4]
[328607973,1717603841254,-500.0,0.00028577,4]
[328607974,1717603841265,-198.29486355,0.00028577,4]
[328607975,1717603841278,-301.70513645,0.00028577,4]
[328607976,1717603841288,-500.0,0.00028577,4]
[328607977,1717603841298,-500.0,0.00028577,4]
[328607978,1717603841308,-547.36,0.00028577,4]
[328607979,1717603841318,-547.36,0.00028577,4]
[328607980,1717603841328,-500.0,0.00028577,4]
[328607981,1717603841338,-500.0,0.00028577,4]
[328607982,1717603841348,-500.0,0.00028577,4]
[328607983,1717603841357,-354.71771607,0.00028577,4]
[328607984,1717603841374,-145.28228393,0.00028577,4]
[328607985,1717603841384,-1044.58,0.00028577,4]
[328607986,1717603841393,-1044.58,0.00028577,4]
[328607987,1717603841403,-3906.78037009,0.00028577,4]
[328607989,1717603843053,-4055.00793019,0.00028577,4]
[328607990,1717603843271,-744.30169972,0.00028577,4]
[328607991,1717603843280,-1047.93430028,0.00028577,4]
[328607992,1717603843330,-6460.869,0.00028577,4]
[328607993,1717603843342,-988.0,0.00028577,4]
[328608005,1717603845708,-209.28669972,0.00028577,4]
[328608006,1717603845718,-1296.42,0.00028577,4]
[328608007,1717603845729,-1296.42,0.00028577,4]
[328608008,1717603845739,-500.0,0.00028577,4]
[328608009,1717603845748,-280.12330028,0.00028577,4]
[328608010,1717603845819,-243.48302307,0.00028577,4]
[328608011,1717603845829,-500.39631457,0.00028577,4]
[328608012,1717603845838,-500.0,0.00028577,4]
[328608013,1717603845848,-529.12528153,0.00028577,4]
[328608014,1717603845857,-500.0,0.00028577,4]
[328608015,1717603845866,-500.0,0.00028577,4]
[328608016,1717603845875,-500.0,0.00028577,4]
[328608017,1717603845884,-301.64538083,0.00028577,4]